fUST/lending_fUST_20250122
["ID","MTS","AMOUNT","RATE_DAILY","PERIOD"]
[349938579,1737522647412,-551.37,0.00022191,3]
[349938580,1737522647421,-1030.09,0.00022191,3]
[349938581,1737522647431,-2744.4,0.00022191,3]
[349938582,1737522647440,-500.0,0.00022191,3]
[349938583,1737522647450,-717.65,0.00022191,3]
[349938584,1737522647460,-500.0,0.00022191,3]
[349938585,1737522647470,-2873.07,0.00022191,3]
[349938586,1737522647481,-548.24164092,0.00022191,3]
[349938587,1737522647491,-564.94,0.00022191,3]
[349938588,1737522647501,-500.0,0.00022191,3]
[349938589,1737522647510,-926.76,0.00022191,3]
[349938590,1737522647519,-500.0,0.00022191,3]
[349938591,1737522647530,-500.0,0.00022191,3]
[349938592,1737522647540,-500.0,0.00022191,3]
[349938593,1737522647550,-500.0,0.00022191,3]
[349938594,1737522647560,-2665.98,0.00022191,3]
[349938595,1737522647569,-1471.16,0.00022191,3]
[349938596,1737522647579,-500.0,0.00022191,3]
[349938597,1737522647589,-500.0,0.00022191,3]
[349938598,1737522647598,-500.0,0.00022191,3]
[349938599,1737522647608,-500.0,0.00022191,3]
[349938600,1737522647618,-10732.32,0.00022191,3]
[349938601,1737522647628,-500.0,0.00022191,3]
[349938602,1737522647638,-1089.15,0.00022191,3]
[349938603,1737522647648,-1315.55,0.00022191,3]
[349938604,1737522647659,-500.0,0.00022191,3]
[349938605,1737522647669,-500.0,0.00022191,3]
[349938606,1737522647679,-500.0,0.00022191,3]
[349938607,1737522647688,-500.0,0.00022191,3]
[349938608,1737522647698,-2470.27,0.00022191,3]
[349938609,1737522647708,-500.0,0.00022191,3]
[349938610,1737522647719,-981.23,0.00022191,3]
[349938611,1737522647738,-3920.54,0.00022191,3]
[349938612,1737522647757,-500.0,0.00022191,3]
[349938613,1737522647776,-507.34066332,0.00022191,3]
[349938614,1737522647796,-1911.55,0.00022191,3]
[349938615,1737522647811,-500.0,0.00022191,3]
[349938616,1737522647831,-1155.53,0.00022191,3]
[349938617,1737522647852,-500.0,0.00022191,3]
[349938618,1737522647871,-500.0,0.00022191,3]
[349938619,1737522647891,-1936.82,0.00022191,3]
[349938620,1737522647911,-500.0,0.00022191,3]
[349938621,1737522647928,-1773.31,0.00022191,2]
[349938622,1737522647948,-500.0,0.00022191,3]
[349938623,1737522647963,-500.0,0.00022191,3]
[349938624,1737522647980,-48646.51,0.00022191,3]
[349938625,1737522647994,-3199.08,0.00022191,3]
[349938626,1737522648009,-500.0,0.00022191,3]
[349938627,1737522648024,-11558.89,0.00022191,3]
[349938628,1737522648040,-500.0,0.00022191,3]
[349938629,1737522648056,-500.0,0.00022191,3]
[349938630,1737522648072,-500.0,0.00022191,3]
[349938631,1737522648088,-2997.51,0.00022191,3]
[349938632,1737522648102,-500.0,0.00022191,3]
[349938633,1737522648119,-715.59,0.00022191,3]
[349938634,1737522648135,-935.44,0.00022191,3]
[349938635,1737522648150,-508.69,0.00022191,3]
[349938636,1737522648166,-500.0,0.00022191,3]
[349938637,1737522648183,-500.0,0.00022191,3]
[349938638,1737522648199,-1059.79,0.00022191,3]
[349938639,1737522648215,-500.0,0.00022191,3]
[349938640,1737522648231,-1844.51,0.00022191,3]
[349938641,1737522648247,-688.01,0.00022191,3]
[349938642,1737522648262,-500.0,0.00022191,3]
[349938643,1737522648277,-500.0,0.00022191,3]
[349938644,1737522648292,-500.0,0.00022191,3]
[349938645,1737522648307,-500.0,0.00022191,3]
[349938646,1737522648323,-901.63,0.00022191,3]
[349938647,1737522648337,-500.0,0.00022191,3]
[349938648,1737522648352,-3809.82,0.00022191,3]
[349938649,1737522648367,-500.0,0.00022191,3]
[349938650,1737522648383,-618.49,0.00022191,3]
[349938651,1737522648400,-500.0,0.00022191,3]
[349938652,1737522648415,-1065.73,0.00022191,3]
[349938653,1737522648430,-500.0,0.00022191,3]
[349938654,1737522648445,-500.0,0.00022191,3]
[349938655,1737522648461,-500.0,0.00022191,3]
[349938656,1737522648473,-3194.76,0.00022191,3]
[349938657,1737522648483,-500.0,0.00022191,3]
[349938658,1737522648641,-663.14,0.00022191,3]
[349938659,1737522648659,-1596.03,0.00022191,3]
[349938660,1737522648669,-500.0,0.00022191,3]
[349938661,1737522648679,-1611.64,0.00022191,3]
[349938662,1737522648689,-8127.96,0.00022191,3]
[349938663,1737522648699,-500.0,0.00022191,3]
[349938664,1737522648709,-500.0,0.00022191,3]
[349938665,1737522648720,-500.0,0.00022191,3]
[349938666,1737522648731,-995.76,0.00022191,3]
[349938667,1737522648740,-1636.63,0.00022191,3]
[349938668,1737522648750,-1849.06,0.00022191,3]
[349938669,1737522648760,-500.0,0.00022191,3]
[349938670,1737522648769,-493.39509846,0.00022191,3]
[349938671,1737522648779,-500.0,0.00022191,3]
[349938672,1737522648789,-500.0,0.00022191,3]
[349938673,1737522648799,-500.0,0.00022191,3]
[349938674,1737522648809,-1332.86,0.00022191,3]
[349938675,1737522648818,-772.01,0.00022191,3]
[349938676,1737522648828,-985.03,0.00022191,3]
[349938677,1737522648837,-500.0,0.00022191,3]
[349938678,1737522648847,-500.0,0.00022191,3]
[349938679,1737522648859,-500.0,0.00022191,3]
[349938680,1737522648870,-500.0,0.00022191,3]
[349938681,1737522648880,-3429.85,0.00022191,3]
[349938682,1737522648891,-940.7,0.00022191,3]
[349938683,1737522648900,-500.0,0.00022191,3]
[349938684,1737522648910,-615.07,0.00022191,3]
[349938685,1737522648920,-535.22,0.00022191,3]
[349938686,1737522648931,-500.0,0.00022191,3]
[349938687,1737522648941,-654.2,0.00022191,3]
[349938688,1737522648952,-10489.87,0.000222,2]
[349938689,1737522648962,-8700.1,0.000222,14]
[349938690,1737522648971,-521.69336106,0.0002221,3]
[349938691,1737522648980,-539.11864533,0.00022227,2]
[349938692,1737522648990,-521.69336106,0.00022314,3]
[349938693,1737522649000,-201.29935408,0.00022328,3]
[349938694,1737522649010,-200.54340008,0.00022328,2]
[349938695,1737522649019,-215.43035768,0.00022328,3]
[349938696,1737522649029,-168.51522762,0.00022328,3]
[349938697,1737522649039,-500.0,0.00022328,3]
[349938698,1737522649049,-500.0,0.00022328,3]
[349938699,1737522649059,-202.78285562,0.00022328,3]
[349938700,1737522649069,-500.0,0.00022328,3]
[349938701,1737522649079,-500.0,0.00022328,3]
[349938702,1737522649089,-500.0,0.00022328,3]
[349938703,1737522649099,-500.0,0.00022328,3]
[349938704,1737522649109,-666.04,0.00022328,3]
[349938705,1737522649120,-852.64,0.00022328,3]
[349938706,1737522649131,-500.0,0.00022328,3]
[349938707,1737522649141,-500.0,0.00022328,3]
[349938708,1737522649151,-500.0,0.00022328,3]
[349938709,1737522649163,-500.0,0.00022328,3]
[349938710,1737522649172,-500.0,0.00022328,3]
[349938711,1737522649182,-500.0,0.00022328,3]
[349938712,1737522649193,-630.63,0.00022328,3]
[349938713,1737522649203,-717.29,0.00022328,3]
[349938714,1737522649213,-528.04,0.00022328,3]
[349938715,1737522649223,-320.08324111,0.00022328,3]
[349938716,1737522649233,-500.0,0.00022328,3]
[349938717,1737522649242,-500.0,0.00022328,3]
[349938718,1737522649252,-500.0,0.00022328,3]
[349938719,1737522649262,-383.2980265,0.00022328,3]
[349938720,1737522649272,-500.0,0.00022328,3]
[349938721,1737522649281,-500.0,0.00022328,3]
[349938722,1737522649292,-500.0,0.00022328,3]
[349938723,1737522649306,-500.0,0.00022328,3]
[349938724,1737522649315,-500.0,0.00022328,3]
[349938725,1737522649325,-500.0,0.00022328,3]
[349938726,1737522649335,-500.0,0.00022328,3]
[349938727,1737522649344,-926.68,0.00022328,3]
[349938728,1737522649355,-500.0,0.00022328,3]
[349938729,1737522649365,-272.7618437,0.00022328,3]
[349938730,1737522649375,-500.0,0.00022328,3]
[349938731,1737522649385,-500.0,0.00022328,3]
[349938732,1737522649395,-500.0,0.00022328,3]
[349938733,1737522649405,-763.48,0.00022328,3]
[349938734,1737522649414,-500.0,0.00022328,3]
[349938735,1737522649424,-566.44,0.00022328,3]
[349938736,1737522649433,-500.0,0.00022328,3]
[349938737,1737522649443,-500.0,0.00022328,3]
[349938738,1737522649453,-500.0,0.00022328,3]
[349938739,1737522649462,-500.0,0.00022328,3]
[349938740,1737522649472,-500.0,0.00022328,3]
[349938741,1737522649482,-500.0,0.00022328,3]
[349938742,1737522649491,-500.0,0.00022328,3]
[349938743,1737522649501,-500.0,0.00022328,3]
[349938744,1737522649510,-535.06,0.00022328,3]
[349938745,1737522649520,-505.15359567,0.00022328,3]
[349938746,1737522649530,-500.0,0.00022328,3]
[349938747,1737522649539,-500.0,0.00022328,3]
[349938748,1737522649550,-638.34,0.00022328,3]
[349938749,1737522649559,-573.66322432,0.00022328,3]
[349938750,1737522649569,-500.0,0.00022328,3]
[349938751,1737522649579,-882.26,0.00022328,3]
[349938752,1737522649589,-500.0,0.00022328,3]
[349938753,1737522649599,-500.0,0.00022328,3]
[349938754,1737522649609,-500.0,0.00022328,3]
[349938755,1737522649619,-1091.1,0.00022328,3]
[349938756,1737522649629,-500.0,0.00022328,3]
[349938757,1737522649639,-649.55,0.00022328,3]
[349938758,1737522649649,-500.0,0.00022328,3]
[349938759,1737522649659,-500.0,0.00022328,3]
[349938760,1737522649669,-500.0,0.00022328,3]
[349938761,1737522649678,-500.0,0.00022328,3]
[349938762,1737522649688,-500.0,0.00022328,3]
[349938763,1737522649698,-500.0,0.00022328,3]
[349938764,1737522649708,-180.52030777,0.00022328,3]
[349938765,1737522649718,-500.0,0.00022328,3]
[349938766,1737522649727,-500.0,0.00022328,3]
[349938767,1737522649737,-551.09,0.00022328,3]
[349938768,1737522649747,-500.0,0.00022328,3]
[349938769,1737522649756,-500.0,0.00022328,3]
[349938770,1737522649766,-500.0,0.00022328,3]
[349938771,1737522649775,-700.49,0.00022328,3]
[349938772,1737522649785,-500.0,0.00022328,3]
[349938773,1737522649795,-500.0,0.00022328,3]
[349938774,1737522649804,-1397.0,0.00022328,3]
[349938775,1737522649814,-500.0,0.00022328,3]
[349938776,1737522649824,-500.0,0.00022328,3]
[349938777,1737522649833,-783.27,0.00022328,3]
[349938778,1737522649843,-951.62,0.00022328,3]
[349938779,1737522649857,-500.0,0.00022328,3]
[349938780,1737522649867,-500.0,0.00022328,3]
[349938781,1737522649877,-500.0,0.00022328,3]
[349938782,1737522649886,-500.0,0.00022328,3]
[349938783,1737522649901,-500.0,0.00022328,3]
[349938784,1737522649912,-500.0,0.00022328,3]
[349938785,1737522649923,-500.0,0.00022328,3]
[349938786,1737522649933,-500.0,0.00022328,3]
[349938787,1737522649943,-502.62,0.00022328,3]
[349938788,1737522649952,-402.924205,0.00022328,3]
[349938789,1737522649962,-500.0,0.00022328,3]
[349938790,1737522649972,-500.0,0.00022328,3]
[349938791,1737522649983,-500.0,0.00022328,3]
[349938792,1737522649994,-2620.52,0.00022328,3]
[349938793,1737522650004,-500.0,0.00022328,3]
[349938794,1737522650014,-500.0,0.00022328,3]
[349938795,1737522650025,-500.0,0.00022328,3]
[349938796,1737522650035,-500.0,0.00022328,3]
[349938797,1737522650044,-500.0,0.00022328,3]
[349938798,1737522650054,-500.0,0.00022328,3]
[349938799,1737522650064,-500.0,0.00022328,3]
[349938800,1737522650074,-895.22,0.00022328,3]
[349938801,1737522650083,-500.0,0.00022328,3]
[349938802,1737522650094,-859.69,0.00022328,3]
[349938803,1737522650103,-500.0,0.00022328,3]
[349938804,1737522650113,-306.39769042,0.00022328,3]
[349938805,1737522650123,-1368.61,0.00022328,3]
[349938806,1737522650132,-500.0,0.00022328,3]
[349938807,1737522650144,-500.0,0.00022328,3]
[349938808,1737522650154,-500.0,0.00022328,3]
[349938809,1737522650164,-1432.18,0.00022328,3]
[349938810,1737522650174,-606.42,0.00022328,3]
[349938811,1737522650184,-290.14150316,0.00022328,3]
[349938812,1737522650193,-500.0,0.00022328,3]
[349938813,1737522650280,-500.0,0.00022328,3]
[349938814,1737522650290,-928.6,0.00022328,3]
[349938815,1737522650300,-500.0,0.00022328,3]
[349938816,1737522650311,-500.0,0.00022328,3]
[349938817,1737522650321,-533.38,0.00022328,3]
[349938818,1737522650335,-585.75,0.00022328,3]
[349938819,1737522650345,-500.0,0.00022328,3]
[349938820,1737522650356,-812.47,0.00022328,3]
[349938821,1737522650366,-500.0,0.00022328,3]
[349938822,1737522650375,-500.0,0.00022328,3]
[349938823,1737522650385,-1303.23,0.00022328,3]
[349938824,1737522650395,-500.0,0.00022328,3]
[349938825,1737522650404,-500.0,0.00022328,3]
[349938826,1737522650413,-964.39,0.00022328,3]
[349938827,1737522650423,-1410.5,0.00022328,3]
[349938828,1737522650433,-388.22412401,0.00022328,3]
[349938829,1737522650443,-500.0,0.00022328,3]
[349938830,1737522650454,-500.0,0.00022328,3]
[349938831,1737522650463,-799.23,0.00022328,3]
[349938832,1737522650473,-500.0,0.00022328,3]
[349938833,1737522650482,-500.0,0.00022328,3]
[349938834,1737522650491,-764.42,0.00022328,3]
[349938835,1737522650503,-551.37,0.00022328,3]
[349938836,1737522650512,-1030.09,0.00022328,3]
[349938837,1737522650522,-2744.4,0.00022328,3]
[349938838,1737522650531,-500.0,0.00022328,3]
[349938839,1737522650541,-717.65,0.00022328,3]
[349938840,1737522650551,-500.0,0.00022328,3]
[349938841,1737522650561,-2873.07,0.00022328,3]
[349938842,1737522650570,-564.94,0.00022328,3]
[349938843,1737522650580,-500.0,0.00022328,3]
[349938844,1737522650589,-926.76,0.00022328,3]
[349938845,1737522650599,-500.0,0.00022328,3]
[349938846,1737522650608,-500.0,0.00022328,3]
[349938847,1737522650617,-500.0,0.00022328,3]
[349938848,1737522650627,-500.0,0.00022328,3]
[349938849,1737522650636,-2665.98,0.00022328,3]
[349938850,1737522650646,-1471.16,0.00022328,3]
[349938851,1737522650655,-500.0,0.00022328,3]
[349938852,1737522650664,-500.0,0.00022328,3]
[349938853,1737522650674,-322.70572094,0.00022328,3]
[349938854,1737522650683,-10732.32,0.00022328,3]
[349938855,1737522650693,-500.0,0.00022328,3]
[349938856,1737522650704,-1089.15,0.00022328,3]
[349938857,1737522650713,-1315.55,0.00022328,3]
[349938858,1737522650723,-500.0,0.00022328,3]
[349938859,1737522650732,-500.0,0.00022328,3]
[349938860,1737522650742,-500.0,0.00022328,3]
[349938861,1737522650752,-500.0,0.00022328,3]
[349938862,1737522650762,-2470.27,0.00022328,3]
[349938863,1737522650771,-500.0,0.00022328,3]
[349938864,1737522650781,-981.23,0.00022328,3]
[349938865,1737522650791,-3920.54,0.00022328,3]
[349938866,1737522650800,-500.0,0.00022328,3]
[349938867,1737522650810,-1911.55,0.00022328,3]
[349938868,1737522650819,-281.74897783,0.00022328,3]
[349938869,1737522650829,-1155.53,0.00022328,3]
[349938870,1737522650838,-500.0,0.00022328,3]
[349938871,1737522650852,-500.0,0.00022328,3]
[349938872,1737522650861,-1936.82,0.00022328,3]
[349938873,1737522650872,-500.0,0.00022328,3]
[349938874,1737522650881,-1773.31,0.00022328,2]
[349938875,1737522650891,-500.0,0.00022328,3]
[349938876,1737522650900,-500.0,0.00022328,3]
[349938877,1737522650910,-48646.51,0.00022328,3]
[349938878,1737522650921,-3199.08,0.00022328,3]
[349938879,1737522650931,-500.0,0.00022328,3]
[349938880,1737522650940,-11558.89,0.00022328,3]
[349938881,1737522650952,-500.0,0.00022328,3]
[349938882,1737522650961,-500.0,0.00022328,3]
[349938883,1737522650972,-500.0,0.00022328,3]
[349938884,1737522650982,-2997.51,0.00022328,3]
[349938885,1737522650992,-500.0,0.00022328,3]
[349938886,1737522651002,-715.59,0.00022328,3]
[349938887,1737522651012,-935.44,0.00022328,3]
[349938888,1737522651022,-508.69,0.00022328,3]
[349938889,1737522651032,-500.0,0.00022328,3]
[349938890,1737522651042,-500.0,0.00022328,3]
[349938891,1737522651051,-1059.79,0.00022328,3]
[349938892,1737522651061,-500.0,0.00022328,3]
[349938893,1737522651071,-1844.51,0.00022328,3]
[349938894,1737522651080,-688.01,0.00022328,3]
[349938895,1737522651089,-500.0,0.00022328,3]
[349938896,1737522651099,-500.0,0.00022328,3]
[349938897,1737522651107,-500.0,0.00022328,3]
[349938898,1737522651117,-500.0,0.00022328,3]
[349938899,1737522651126,-901.63,0.00022328,3]
[349938900,1737522651136,-500.0,0.00022328,3]
[349938901,1737522651147,-3809.82,0.00022328,3]
[349938902,1737522651161,-500.0,0.00022328,3]
[349938903,1737522651170,-618.49,0.00022328,3]
[349938904,1737522651179,-500.0,0.00022328,3]
[349938905,1737522651189,-1065.73,0.00022328,3]
[349938906,1737522651199,-500.0,0.00022328,3]
[349938907,1737522651208,-500.0,0.00022328,3]
[349938908,1737522651223,-500.0,0.00022328,3]
[349938909,1737522651232,-3194.76,0.00022328,3]
[349938910,1737522651241,-500.0,0.00022328,3]
[349938911,1737522651251,-663.14,0.00022328,3]
[349938912,1737522651260,-1596.03,0.00022328,3]
[349938913,1737522651269,-500.0,0.00022328,3]
[349938914,1737522651279,-1611.64,0.00022328,3]
[349938915,1737522651288,-8127.96,0.00022328,3]
[349938916,1737522651298,-500.0,0.00022328,3]
[349938917,1737522651307,-500.0,0.00022328,3]
[349938918,1737522651316,-500.0,0.00022328,3]
[349938919,1737522651326,-995.76,0.00022328,3]
[349938920,1737522651335,-1636.63,0.00022328,3]
[349938921,1737522651344,-1849.06,0.00022328,3]
[349938922,1737522651354,-561.3445151,0.00022328,3]
[349938923,1737522651363,-217.9004202,0.00022328,3]
[349938924,1737522651373,-500.0,0.00022328,3]
[349938925,1737522651382,-500.0,0.00022328,3]
[349938926,1737522651392,-1332.86,0.00022328,3]
[349938927,1737522651401,-772.01,0.00022328,3]
[349938928,1737522651410,-985.03,0.00022328,3]
[349938929,1737522651419,-500.0,0.00022328,3]
[349938930,1737522651430,-500.0,0.00022328,3]
[349938931,1737522651439,-500.0,0.00022328,3]
[349938932,1737522651449,-500.0,0.00022328,3]
[349938933,1737522651459,-3429.85,0.00022328,3]
[349938934,1737522651468,-940.7,0.00022328,3]
[349938935,1737522651478,-500.0,0.00022328,3]
[349938936,1737522651487,-615.07,0.00022328,3]
[349938937,1737522651496,-535.22,0.00022328,3]
[349938938,1737522651506,-500.0,0.00022328,3]
[349938939,1737522651515,-654.2,0.00022328,3]
[349938940,1737522651524,-1947.2034067,0.00022337,2]
[349938941,1737522651533,-521.69336106,0.00022417,3]
[349938942,1737522651543,-789.11059231,0.00022455,2]
[349938943,1737522651552,-500.0,0.00022465,3]
[349938944,1737522651561,-500.0,0.00022465,3]
[349938945,1737522651571,-500.0,0.00022465,3]
[349938946,1737522651580,-500.0,0.00022465,3]
[349938947,1737522651589,-666.04,0.00022465,3]
[349938948,1737522651599,-852.64,0.00022465,3]
[349938949,1737522651609,-500.0,0.00022465,3]
[349938950,1737522651619,-500.0,0.00022465,3]
[349938951,1737522651629,-500.0,0.00022465,3]
[349938952,1737522651638,-500.0,0.00022465,3]
[349938953,1737522651648,-500.0,0.00022465,3]
[349938954,1737522651657,-500.0,0.00022465,3]
[349938955,1737522651666,-630.63,0.00022465,3]
[349938956,1737522651744,-717.29,0.00022465,3]
[349938957,1737522651754,-528.04,0.00022465,3]
[349938958,1737522651764,-500.0,0.00022465,3]
[349938959,1737522651774,-500.0,0.00022465,3]
[349938960,1737522651783,-500.0,0.00022465,3]
[349938961,1737522651793,-500.0,0.00022465,3]
[349938962,1737522651802,-519.14912042,0.00022465,3]
[349938963,1737522651811,-500.0,0.00022465,3]
[349938964,1737522651820,-500.0,0.00022465,3]
[349938965,1737522651830,-274.05455122,0.00022465,3]
[349938966,1737522651839,-500.0,0.00022465,3]
[349938967,1737522651850,-500.0,0.00022465,3]
[349938968,1737522651860,-926.68,0.00022465,3]
[349938969,1737522651869,-500.0,0.00022465,3]
[349938970,1737522651879,-500.0,0.00022465,3]
[349938971,1737522651888,-500.0,0.00022465,3]
[349938972,1737522651898,-500.0,0.00022465,3]
[349938973,1737522651908,-763.48,0.00022465,3]
[349938974,1737522651917,-500.0,0.00022465,3]
[349938975,1737522651929,-566.44,0.00022465,3]
[349938976,1737522651939,-500.0,0.00022465,3]
[349938977,1737522651948,-500.0,0.00022465,3]
[349938978,1737522651958,-500.0,0.00022465,3]
[349938979,1737522651968,-500.0,0.00022465,3]
[349938980,1737522651977,-500.0,0.00022465,3]
[349938981,1737522651987,-500.0,0.00022465,3]
[349938982,1737522651997,-500.0,0.00022465,3]
[349938983,1737522652007,-500.0,0.00022465,3]
[349938984,1737522652017,-535.06,0.00022465,3]
[349938985,1737522652027,-500.0,0.00022465,3]
[349938986,1737522652037,-500.0,0.00022465,3]
[349938987,1737522652047,-638.34,0.00022465,3]
[349938988,1737522652056,-500.0,0.00022465,3]
[349938989,1737522652066,-882.26,0.00022465,3]
[349938990,1737522652075,-500.0,0.00022465,3]
[349938991,1737522652085,-500.0,0.00022465,3]
[349938992,1737522652094,-500.0,0.00022465,3]
[349938993,1737522652104,-1091.1,0.00022465,3]
[349938994,1737522652114,-500.0,0.00022465,3]
[349938995,1737522652124,-649.55,0.00022465,3]
[349938996,1737522652134,-500.0,0.00022465,3]
[349938997,1737522652143,-500.0,0.00022465,3]
[349938998,1737522652153,-500.0,0.00022465,3]
[349938999,1737522652163,-500.0,0.00022465,3]
[349939000,1737522652172,-500.0,0.00022465,3]
[349939001,1737522652182,-510.45341794,0.00022465,3]
[349939002,1737522652192,-500.0,0.00022465,3]
[349939003,1737522652201,-551.09,0.00022465,3]
[349939004,1737522652211,-500.0,0.00022465,3]
[349939005,1737522652220,-510.5,0.00022465,3]
[349939006,1737522652230,-500.0,0.00022465,3]
[349939007,1737522652239,-700.49,0.00022465,3]
[349939008,1737522652249,-500.0,0.00022465,3]
[349939009,1737522652259,-500.0,0.00022465,3]
[349939010,1737522652268,-1397.0,0.00022465,3]
[349939011,1737522652278,-500.0,0.00022465,3]
[349939012,1737522652288,-500.0,0.00022465,3]
[349939013,1737522652297,-783.27,0.00022465,3]
[349939014,1737522652307,-951.62,0.00022465,3]
[349939015,1737522652316,-500.0,0.00022465,3]
[349939016,1737522652325,-500.0,0.00022465,3]
[349939017,1737522652335,-500.0,0.00022465,3]
[349939018,1737522652345,-500.0,0.00022465,3]
[349939019,1737522652354,-500.0,0.00022465,3]
[349939020,1737522652364,-500.0,0.00022465,3]
[349939021,1737522652374,-500.0,0.00022465,3]
[349939022,1737522652383,-500.0,0.00022465,3]
[349939023,1737522652393,-502.62,0.00022465,3]
[349939024,1737522652402,-500.0,0.00022465,3]
[349939025,1737522652412,-500.0,0.00022465,3]
[349939026,1737522652421,-500.0,0.00022465,3]
[349939027,1737522652431,-2620.52,0.00022465,3]
[349939028,1737522652440,-500.0,0.00022465,3]
[349939029,1737522652450,-500.0,0.00022465,3]
[349939030,1737522652460,-500.0,0.00022465,3]
[349939031,1737522652469,-500.0,0.00022465,3]
[349939032,1737522652479,-500.0,0.00022465,3]
[349939033,1737522652489,-500.0,0.00022465,3]
[349939034,1737522652499,-500.0,0.00022465,3]
[349939035,1737522652508,-895.22,0.00022465,3]
[349939036,1737522652518,-500.0,0.00022465,3]
[349939037,1737522652528,-859.69,0.00022465,3]
[349939038,1737522652537,-500.0,0.00022465,3]
[349939039,1737522652547,-1368.61,0.00022465,3]
[349939040,1737522652557,-500.0,0.00022465,3]
[349939041,1737522652566,-500.0,0.00022465,3]
[349939042,1737522652576,-500.0,0.00022465,3]
[349939043,1737522652586,-1432.18,0.00022465,3]
[349939044,1737522652595,-606.42,0.00022465,3]
[349939045,1737522652605,-500.0,0.00022465,3]
[349939046,1737522652614,-500.0,0.00022465,3]
[349939047,1737522652624,-928.6,0.00022465,3]
[349939048,1737522652633,-500.0,0.00022465,3]
[349939049,1737522652643,-500.0,0.00022465,3]
[349939050,1737522652652,-533.38,0.00022465,3]
[349939051,1737522652663,-585.75,0.00022465,3]
[349939052,1737522652672,-500.0,0.00022465,3]
[349939053,1737522652681,-812.47,0.00022465,3]
[349939054,1737522652691,-500.0,0.00022465,3]
[349939055,1737522652700,-500.0,0.00022465,3]
[349939056,1737522652710,-1303.23,0.00022465,3]
[349939057,1737522652720,-500.0,0.00022465,3]
[349939058,1737522652730,-500.0,0.00022465,3]
[349939059,1737522652739,-964.39,0.00022465,3]
[349939060,1737522652749,-1410.5,0.00022465,3]
[349939061,1737522652759,-500.0,0.00022465,3]
[349939062,1737522652769,-500.0,0.00022465,3]
[349939063,1737522652778,-799.23,0.00022465,3]
[349939064,1737522652788,-500.0,0.00022465,3]
[349939065,1737522652797,-500.0,0.00022465,3]
[349939066,1737522652807,-764.42,0.00022465,3]
[349939067,1737522652816,-551.37,0.00022465,3]
[349939068,1737522652826,-1030.09,0.00022465,3]
[349939069,1737522652836,-2744.4,0.00022465,3]
[349939070,1737522652847,-500.0,0.00022465,3]
[349939071,1737522652859,-717.65,0.00022465,3]
[349939072,1737522652868,-500.0,0.00022465,3]
[349939073,1737522652878,-2873.07,0.00022465,3]
[349939074,1737522652888,-564.94,0.00022465,3]
[349939075,1737522652897,-561.06200096,0.00022465,3]
[349939076,1737522652907,-926.76,0.00022465,3]
[349939077,1737522652916,-500.0,0.00022465,3]
[349939078,1737522652926,-500.0,0.00022465,3]